bitfinex-derivatives/quotes_BTCF0:USTF0_20251229
["timestamp","ask_amount","ask_price","bid_price","bid_amount"]
[1767008556350,0.08145719,87731.0,87715.0,0.0114139]
[1767008556545,0.02425772,87730.0,87715.0,0.0114139]
[1767008556752,0.0572,87729.0,87711.0,0.0114145]
[1767008558053,0.0114123,87728.0,87708.0,0.097]
[1767008558559,0.0114123,87728.0,87709.0,0.11399908]
[1767008559055,0.0114123,87728.0,87709.0,0.12541378]
[1767008560355,0.0114123,87728.0,87711.0,0.0114144]
[1767008560749,0.0572,87729.0,87711.0,0.0114144]
[1767008561359,0.0572,87729.0,87713.0,0.0114142]
[1767008563260,0.02433226,87728.0,87715.0,0.0114139]
[1767008563454,0.0572,87729.0,87712.0,0.0114143]
[1767008563656,0.02433224,87728.0,87712.0,0.0114143]
[1767008563850,0.0572,87729.0,87712.0,0.0114143]
[1767008564051,0.02433224,87728.0,87712.0,0.0114143]
[1767008564359,0.0572,87730.0,87712.0,0.0114143]
[1767008564556,0.02433686,87729.0,87708.0,0.097]
[1767008564758,0.02433686,87728.0,87708.0,0.097]
[1767008564958,0.0572,87730.0,87714.0,0.011414]
[1767008565161,0.02433686,87729.0,87714.0,0.011414]
[1767008565361,0.02433686,87728.0,87714.0,0.011414]
[1767008565561,0.02433686,87727.0,87714.0,0.011414]
[1767008565762,0.0572,87730.0,87714.0,0.011414]
[1767008566064,0.02434248,87729.0,87708.0,0.097]
[1767008566264,0.0572,87730.0,87708.0,0.097]
[1767008566465,0.0572,87730.0,87709.0,0.11399713]
[1767008567067,0.0572,87730.0,87719.0,0.0114133]
[1767008569160,0.0572,87730.0,87708.0,0.097]
[1767008569362,0.0572,87730.0,87711.0,0.0114144]
[1767008570369,0.0572,87731.0,87712.0,0.11400038]
[1767008570771,0.0572,87731.0,87713.0,0.0114142]
[1767008571371,0.0572,87731.0,87708.0,0.097]
[1767008571568,0.0114122,87729.0,87712.0,0.0114143]
[1767008572264,0.0114122,87729.0,87713.0,0.11399648]
[1767008572662,0.0572,87731.0,87714.0,0.0114141]
[1767008573576,0.0572,87731.0,87716.0,0.0114138]
[1767008577170,0.0243724,87730.0,87716.0,0.0114138]
[1767008577370,0.0572,87731.0,87716.0,0.0114138]
[1767008577573,0.0243724,87730.0,87716.0,0.0114138]
[1767008577773,0.0572,87731.0,87716.0,0.0114138]
[1767008577967,0.0243724,87730.0,87716.0,0.0114138]
[1767008578270,0.0572,87731.0,87716.0,0.0114138]
[1767008579472,0.0572,87731.0,87718.0,0.0114135]
[1767008580773,0.0572,87731.0,87716.0,0.0114137]
[1767008581477,0.0572,87731.0,87713.0,0.0114142]
[1767008581678,0.0572,87731.0,87715.0,0.0114139]
[1767008583983,0.0572,87731.0,87716.0,0.04394]
[1767008584380,0.0114117,87733.0,87716.0,0.04394]
[1767008584580,0.011412,87731.0,87716.0,0.04394]
[1767008585284,0.0685718,87732.0,87716.0,0.04394]
[1767008585485,0.0243581,87731.0,87716.0,0.04394]
[1767008585678,0.0685718,87732.0,87716.0,0.04394]
[1767008585880,0.02435956,87731.0,87716.0,0.04394]
[1767008586081,0.0685718,87732.0,87716.0,0.04394]
[1767008586281,0.011412,87730.0,87716.0,0.04394]
[1767008586979,0.05716,87732.0,87716.0,0.04394]
[1767008587180,0.02436524,87731.0,87716.0,0.04394]
[1767008587382,0.02436524,87730.0,87716.0,0.04394]
[1767008587583,0.05716,87732.0,87716.0,0.04394]
[1767008587784,0.0243661,87731.0,87716.0,0.04394]
[1767008587984,0.0243661,87730.0,87716.0,0.04394]
[1767008588184,0.05716,87732.0,87716.0,0.04394]
[1767008588384,0.02436696,87731.0,87716.0,0.04394]
[1767008588590,0.02436696,87730.0,87717.0,0.0114136]
[1767008588890,0.05716,87732.0,87717.0,0.0114136]
[1767008589090,0.02436484,87731.0,87717.0,0.0114136]
[1767008589291,0.02436484,87730.0,87717.0,0.0114136]
[1767008589489,0.05716,87732.0,87717.0,0.0114136]
[1767008589790,0.02436566,87731.0,87717.0,0.0114136]
[1767008590087,0.02436566,87730.0,87716.0,0.04394]
[1767008590290,0.0114119,87731.0,87716.0,0.04394]
[1767008590491,0.0243574,87730.0,87716.0,0.04394]
[1767008590791,0.0114119,87731.0,87716.0,0.04394]
[1767008591092,0.02435734,87730.0,87716.0,0.04394]
[1767008591290,0.0114119,87731.0,87716.0,0.04394]
[1767008591489,0.02435847,87730.0,87716.0,0.04394]
[1767008591690,0.0114119,87731.0,87716.0,0.04394]
[1767008591889,0.02435845,87730.0,87716.0,0.04394]
[1767008592093,0.0114119,87731.0,87716.0,0.04394]
[1767008592286,0.02435841,87730.0,87716.0,0.04394]
[1767008592486,0.0114122,87729.0,87716.0,0.04394]
[1767008594587,0.02436194,87728.0,87716.0,0.04394]
[1767008594784,0.0114122,87729.0,87716.0,0.04394]
[1767008594979,0.02436182,87728.0,87716.0,0.04394]
[1767008595184,0.0114122,87729.0,87716.0,0.04394]
[1767008595389,0.02436557,87728.0,87716.0,0.04394]
[1767008595593,0.0685718,87732.0,87716.0,0.0553538]
[1767008595794,0.02436354,87731.0,87716.0,0.0553538]
[1767008596090,0.02436354,87730.0,87718.0,0.0114135]
[1767008596290,0.00017104,87734.0,87716.0,0.04394]
[1767008596291,0.02436354,87729.0,87722.0,0.0114129]
[1767008596489,0.00017104,87734.0,87724.0,0.0114127]
[1767008596685,0.02436244,87733.0,87724.0,0.0114127]
[1767008596891,0.02436244,87732.0,87724.0,0.0114127]
[1767008597086,0.02435941,87731.0,87724.0,0.0114127]
[1767008597286,0.05733104,87734.0,87724.0,0.0114127]
[1767008597490,0.02436083,87733.0,87724.0,0.0114127]
[1767008597694,0.02436083,87732.0,87724.0,0.0114127]
[1767008597895,0.02436083,87731.0,87724.0,0.0114127]
[1767008598098,0.05733104,87734.0,87724.0,0.0114127]
[1767008598295,0.02437193,87733.0,87724.0,0.0114127]
[1767008598602,0.02437193,87732.0,87716.0,0.04394]
[1767008598794,0.02437193,87731.0,87716.0,0.04394]
[1767008598990,0.05733104,87734.0,87716.0,0.04394]
[1767008599189,0.02436853,87733.0,87722.0,0.011413]
[1767008599390,0.02436853,87732.0,87716.0,0.04394]
[1767008599586,0.02436853,87731.0,87722.0,0.011413]
[1767008599790,0.05733104,87734.0,87722.0,0.011413]
[1767008600089,0.02436101,87733.0,87722.0,0.011413]
[1767008600294,0.02436101,87732.0,87722.0,0.011413]
[1767008600495,0.02436101,87731.0,87722.0,0.011413]
[1767008600800,0.05733104,87734.0,87722.0,0.011413]
[1767008601000,0.02435975,87733.0,87722.0,0.011413]
[1767008601199,0.02435975,87732.0,87722.0,0.011413]
[1767008601405,0.02435975,87731.0,87722.0,0.011413]
[1767008601603,0.05733104,87734.0,87722.0,0.011413]
[1767008601802,0.02435923,87733.0,87722.0,0.011413]
[1767008602003,0.02435923,87732.0,87722.0,0.011413]
[1767008602202,0.02435923,87731.0,87722.0,0.011413]
[1767008602503,0.05733104,87734.0,87724.0,0.0114127]
[1767008602698,0.02435494,87733.0,87724.0,0.0114127]
[1767008602898,0.02435494,87732.0,87724.0,0.0114127]
[1767008603102,0.05733104,87734.0,87724.0,0.0114127]
[1767008603304,0.02435402,87733.0,87723.0,0.0114128]
[1767008603501,0.02435402,87732.0,87723.0,0.0114128]
[1767008603702,0.05733104,87734.0,87723.0,0.0114128]
[1767008603903,0.02435321,87733.0,87720.0,0.0114132]
[1767008604099,0.02435321,87732.0,87722.0,0.011413]
[1767008604298,0.00017104,87734.0,87722.0,0.011413]
[1767008604604,0.02435266,87733.0,87722.0,0.011413]
[1767008604806,0.02435266,87732.0,87722.0,0.011413]
[1767008605104,0.00017104,87734.0,87723.0,0.0114129]
[1767008605305,0.02435246,87733.0,87723.0,0.0114129]
[1767008605506,0.02435246,87732.0,87723.0,0.0114129]
[1767008605807,0.00017104,87734.0,87723.0,0.0114129]
[1767008606104,0.02435194,87733.0,87723.0,0.0114129]
[1767008606405,0.02435194,87732.0,87723.0,0.0114129]
[1767008606605,0.00017104,87734.0,87723.0,0.0114129]
[1767008606808,0.02435148,87733.0,87723.0,0.0114129]
[1767008606999,0.02435148,87732.0,87723.0,0.0114129]
[1767008607201,0.00017104,87734.0,87724.0,0.05733]
[1767008607510,0.02435129,87733.0,87724.0,0.05733]
[1767008607810,0.02435129,87732.0,87724.0,0.05733]
[1767008608003,0.00017104,87734.0,87724.0,0.05733]
[1767008608205,0.02435123,87733.0,87724.0,0.05733]
[1767008608405,0.02435123,87732.0,87724.0,0.05733]
[1767008608705,0.00017104,87734.0,87724.0,0.05733]
[1767008608913,0.02435094,87733.0,87724.0,0.05733]
[1767008609207,0.02435094,87732.0,87724.0,0.05733]
[1767008609506,0.00017104,87734.0,87724.0,0.05733]
[1767008609807,0.02443337,87733.0,87724.0,0.05733]
[1767008610013,0.02443337,87732.0,87724.0,0.05733]
[1767008610204,0.00017104,87734.0,87724.0,0.05733]
[1767008610398,0.02443331,87733.0,87724.0,0.05733]
[1767008610606,0.02443331,87732.0,87724.0,0.05733]
[1767008610807,0.00017104,87734.0,87724.0,0.05733]
[1767008611002,0.02443332,87733.0,87724.0,0.05733]
[1767008611201,0.02443332,87732.0,87724.0,0.05733]
[1767008611406,0.00017104,87734.0,87724.0,0.05733]
[1767008611605,0.02443304,87733.0,87724.0,0.05733]
[1767008611810,0.18570289,87734.0,87718.0,0.09696]
[1767008612108,0.18553185,87730.0,87714.0,0.15412]
[1767008612303,0.0114122,87729.0,87714.0,0.15412]
[1767008612809,0.18553185,87730.0,87714.0,0.15412]
[1767008613309,0.0114122,87729.0,87714.0,0.1655341]
[1767008616714,0.0114122,87729.0,87716.0,0.0114138]
[1767008616902,0.18553185,87730.0,87714.0,0.15412]
[1767008617314,0.00017104,87734.0,87714.0,0.15412]
[1767008617611,0.024429,87733.0,87714.0,0.15412]
[1767008617910,0.024429,87732.0,87714.0,0.15412]
[1767008618113,0.024429,87731.0,87714.0,0.15412]
[1767008618302,0.0114122,87729.0,87717.0,0.0114137]
[1767008619310,0.0114122,87729.0,87714.0,0.165534]
[1767008619813,0.0114119,87731.0,87718.0,0.0114135]
[1767008620014,0.02442644,87730.0,87718.0,0.0114135]
[1767008620210,0.0114119,87731.0,87718.0,0.0114135]
[1767008620413,0.02442634,87730.0,87718.0,0.0114135]
[1767008620605,0.0114119,87731.0,87718.0,0.0114135]
[1767008620806,0.02442615,87730.0,87718.0,0.0114135]
[1767008621006,0.0114119,87731.0,87718.0,0.0114135]
[1767008621206,0.02442577,87730.0,87718.0,0.0114135]
[1767008621410,0.0114119,87731.0,87718.0,0.0114135]
[1767008621612,0.02442593,87730.0,87718.0,0.0114135]
[1767008621816,0.02442617,87729.0,87718.0,0.0114135]
[1767008622114,0.0114119,87731.0,87718.0,0.0114135]
[1767008622416,0.01084223,87731.0,87718.0,0.0114135]
[1767008624201,0.05716,87733.0,87718.0,0.0114135]
[1767008625315,0.0114118,87732.0,87718.0,0.0114135]
[1767008627810,0.05716,87733.0,87717.0,0.05716]
[1767008629218,0.05716,87733.0,87720.0,0.0114132]
[1767008631820,0.05716,87733.0,87717.0,0.05716]
[1767008632922,0.05716,87733.0,87721.0,0.0114132]
[1767008634328,0.0243144,87732.0,87721.0,0.0114132]
[1767008634526,0.0243144,87731.0,87721.0,0.0114132]
[1767008634826,0.05716,87733.0,87721.0,0.0114132]
[1767008635027,0.02430942,87732.0,87721.0,0.0114132]
[1767008635226,0.02430942,87731.0,87721.0,0.0114132]
[1767008635426,0.05716,87733.0,87721.0,0.0114132]
[1767008635627,0.02431479,87732.0,87721.0,0.0114132]
[1767008635926,0.02431479,87731.0,87721.0,0.0114132]
[1767008636127,0.05716,87733.0,87721.0,0.0114132]
[1767008636327,0.0243195,87732.0,87721.0,0.0114132]
[1767008636630,0.0243195,87731.0,87721.0,0.0114132]
[1767008636823,0.05716,87733.0,87721.0,0.0114132]
[1767008637020,0.02432011,87732.0,87721.0,0.0114132]
[1767008637219,0.02432011,87731.0,87721.0,0.0114132]
[1767008637429,0.05716,87733.0,87721.0,0.0114132]
[1767008637632,0.02432045,87732.0,87721.0,0.0114132]
[1767008637927,0.02432045,87731.0,87721.0,0.0114132]
[1767008638127,0.05716,87733.0,87721.0,0.0114132]
[1767008638332,0.02432074,87732.0,87721.0,0.0114132]
[1767008638525,0.02432074,87731.0,87721.0,0.0114132]
[1767008638826,0.05712,87732.0,87721.0,0.0114132]
[1767008639027,0.02434696,87731.0,87721.0,0.0114132]
[1767008639228,0.05712,87732.0,87715.0,0.05712]
[1767008639428,0.02434747,87731.0,87715.0,0.05712]
[1767008639618,0.05712,87732.0,87715.0,0.05712]
[1767008639819,0.02434735,87731.0,87715.0,0.05712]
[1767008640029,0.00017104,87734.0,87716.0,0.11399518]
[1767008640327,0.02434835,87733.0,87716.0,0.11399518]
[1767008640515,0.02434804,87732.0,87716.0,0.11399518]
[1767008640720,0.0114117,87733.0,87716.0,0.11399518]
[1767008640931,0.02434824,87732.0,87716.0,0.11399518]
[1767008641121,0.0114117,87733.0,87716.0,0.11399518]
[1767008641424,0.0114137,87718.0,87713.0,0.05918]
[1767008641613,0.05712,87720.0,87696.0,0.05712]
[1767008641814,0.0114152,87706.0,87696.0,0.05712]
[1767008642029,0.0114151,87707.0,87696.0,0.05712]
[1767008642223,0.19694655,87710.0,87696.0,0.05712]
[1767008642426,0.011415,87708.0,87696.0,0.05712]
[1767008643033,0.18553185,87710.0,87696.0,0.05712]
[1767008643627,0.18553185,87706.0,87688.0,0.0114175]
[1767008643932,0.18553185,87700.0,87688.0,0.0114175]
[1767008645319,0.05716,87704.0,87688.0,0.0114175]
[1767008645717,0.0685755,87704.0,87688.0,0.0655775]
[1767008645931,0.0685755,87704.0,87688.0,0.05416]
[1767008648731,0.18553185,87700.0,87688.0,0.05416]
[1767008649229,0.0685755,87704.0,87688.0,0.05416]
[1767008649634,0.18553185,87700.0,87688.0,0.05416]
[1767008649830,0.0114161,87699.0,87688.0,0.05416]
[1767008650532,0.18553185,87700.0,87688.0,0.05416]
[1767008652330,0.18553185,87700.0,87689.0,0.0114173]
[1767008652630,0.05716,87704.0,87689.0,0.0114173]
[1767008654630,0.05716,87704.0,87688.0,0.05416]
[1767008656031,0.05716,87704.0,87688.0,0.0655774]
[1767008656635,0.05716,87704.0,87690.0,0.0114171]
[1767008657028,0.05716,87704.0,87688.0,0.05416]
[1767008657838,0.05716,87704.0,87691.0,0.011417]
[1767008659132,0.05716,87704.0,87688.0,0.0655774]
[1767008659630,0.05716,87704.0,87690.0,0.0114172]
[1767008661944,0.0114153,87705.0,87690.0,0.0114172]
[1767008661945,0.05716,87705.0,87692.0,0.0114169]
[1767008662232,0.05716,87705.0,87694.0,0.0114167]
[1767008662828,0.18553185,87710.0,87696.0,0.0114164]
[1767008663028,0.05716,87709.0,87688.0,0.05416]
[1767008663339,0.05716,87709.0,87694.0,0.0114167]
[1767008664338,0.05716,87709.0,87696.0,0.0114164]
[1767008667237,0.05716,87709.0,87688.0,0.05416]
[1767008667429,0.011415,87707.0,87689.0,0.0114173]
[1767008667740,0.011415,87707.0,87691.0,0.011417]
[1767008669745,0.0114153,87705.0,87688.0,0.0655774]
[1767008669940,0.0114153,87705.0,87690.0,0.0114172]
[1767008670335,0.011415,87708.0,87690.0,0.0114172]
[1767008670536,0.0114152,87706.0,87690.0,0.0114172]
[1767008673234,0.011415,87707.0,87688.0,0.05416]
[1767008673441,0.05716,87709.0,87688.0,0.05416]
[1767008673643,0.0114153,87705.0,87689.0,0.11402768]
[1767008675141,0.05716,87709.0,87689.0,0.11402768]
[1767008676642,0.0114157,87702.0,87685.0,0.01158884]
[1767008676848,0.0114149,87708.0,87685.0,0.05733104]
[1767008677040,0.05716,87709.0,87685.0,0.05733104]
[1767008677041,0.0114164,87697.0,87685.0,0.05733104]
[1767008677239,0.05716,87709.0,87685.0,0.05733104]
[1767008677442,0.0114158,87701.0,87685.0,4e-08]
[1767008677635,0.0114158,87701.0,87679.0,0.05716]
[1767008677636,0.05716,87700.0,87679.0,0.05716]
[1767008677840,0.02428849,87699.0,87674.0,0.05716]
[1767008678045,0.02428849,87699.0,87669.0,0.06157577]
[1767008678046,0.011418,87685.0,87669.0,0.21103418]
[1767008678248,0.011418,87684.0,87671.0,0.05716]
[1767008678443,0.05716,87692.0,87671.0,0.05716]
[1767008678642,0.0114181,87684.0,87671.0,0.05716]
[1767008678843,0.00017104,87686.0,87671.0,0.05716]
[1767008679444,0.0114179,87685.0,87671.0,0.05716]
[1767008680750,0.0114182,87683.0,87671.0,0.05716]
[1767008681349,0.01158884,87686.0,87671.0,0.05716]
[1767008681843,0.00017104,87686.0,87671.0,0.05716]
[1767008682046,0.0114184,87681.0,87671.0,0.05716]
[1767008682454,0.00017104,87686.0,87669.0,0.00017104]
[1767008682754,0.0114194,87673.0,87669.0,4e-08]
[1767008683058,0.0114194,87673.0,87667.0,0.05007]
[1767008683356,0.011418,87685.0,87667.0,0.05007]
[1767008683555,0.0114194,87674.0,87667.0,0.05007]
[1767008683854,0.011418,87685.0,87667.0,0.05007]
[1767008684154,0.0114195,87673.0,87667.0,0.05018402]
[1767008685457,0.0114191,87676.0,87667.0,0.05018402]
[1767008685854,0.0114194,87674.0,87667.0,0.05018402]
[1767008686748,0.0114189,87677.0,87667.0,0.05018402]
[1767008690561,0.0114192,87675.0,87667.0,0.05018402]
[1767008691362,0.0114188,87678.0,87667.0,0.05018402]
[1767008691652,0.00017104,87686.0,87667.0,0.05018402]
[1767008691858,0.0114191,87676.0,87667.0,0.05018402]
[1767008694757,0.0114187,87679.0,87667.0,0.05018402]
[1767008695149,0.0114189,87677.0,87667.0,0.05018402]
[1767008696360,0.0114184,87682.0,87667.0,0.05018402]
[1767008697057,0.0114186,87680.0,87667.0,0.05018402]
[1767008700763,0.0114185,87681.0,87667.0,0.05018402]
[1767008700960,0.011418,87685.0,87667.0,0.06160412]
[1767008701160,0.0114186,87680.0,87667.0,0.05018402]
[1767008701968,0.0114189,87678.0,87667.0,0.05018402]
[1767008707368,0.0114186,87680.0,87667.0,0.05018402]
[1767008707961,0.00017104,87686.0,87667.0,0.05018402]
[1767008708162,0.02428211,87685.0,87667.0,0.05018402]
[1767008708362,0.02428211,87684.0,87667.0,0.05018402]
[1767008708560,0.02428211,87683.0,87667.0,0.05018402]
[1767008708763,0.02428211,87682.0,87667.0,0.05018402]
[1767008708963,0.0114198,87670.0,87667.0,2e-08]
[1767008709160,0.0114198,87670.0,87659.0,0.05716]
[1767008709464,0.09704,87681.0,87649.0,0.06157577]
[1767008709662,0.0114212,87660.0,87658.0,1e-07]
[1767008709865,0.0114214,87658.0,87643.0,0.06157577]
[1767008710066,0.0001126,87657.0,87644.0,0.05716]
[1767008710569,0.0001126,87657.0,87645.0,0.0114231]
[1767008710760,0.0001126,87657.0,87644.0,0.05716]
[1767008710761,0.0001126,87657.0,87647.0,0.0114228]
[1767008710961,2.6e-06,87657.0,87647.0,0.0114228]
[1767008711367,2.6e-06,87657.0,87644.0,0.05716]
[1767008711672,2.6e-06,87657.0,87650.0,0.0114224]
[1767008712366,2.6e-06,87657.0,87644.0,0.05716]
[1767008712367,3.75e-06,87659.0,87656.0,0.0114216]
[1767008721084,3.75e-06,87659.0,87658.0,0.0114214]
[1767008725182,0.0114188,87678.0,87660.0,0.011421]
[1767008725493,0.02429112,87677.0,87660.0,0.18579285]
[1767008725688,0.18579285,87690.0,87663.0,0.0114206]
[1767008725887,0.0114184,87681.0,87663.0,0.0685806]
[1767008726183,0.02429125,87680.0,87664.0,0.01781946]
[1767008726496,0.02429125,87679.0,87665.0,0.01781946]
[1767008726694,0.02429125,87678.0,87666.0,0.01781946]
[1767008726897,0.02429125,87677.0,87667.0,0.01781946]
[1767008727192,0.0114187,87679.0,87668.0,0.01781946]
[1767008727394,0.02429484,87678.0,87669.0,0.01781946]
[1767008727593,0.02429484,87677.0,87670.0,0.01781946]
[1767008727894,0.0114187,87679.0,87671.0,0.01781946]
[1767008728097,0.02429477,87678.0,87663.0,0.06875175]
[1767008728296,0.03571377,87677.0,87663.0,0.05733115]
[1767008728498,0.011419,87677.0,87663.0,0.05733115]
[1767008731301,0.0114189,87678.0,87663.0,0.05733115]
[1767008731592,0.02421641,87677.0,87663.0,0.05733115]
[1767008731790,0.0114189,87678.0,87663.0,0.05733115]
[1767008731991,0.02421742,87677.0,87663.0,0.05733115]
[1767008732190,0.0114189,87678.0,87663.0,0.06875185]
[1767008732501,0.02421848,87677.0,87663.0,0.06875185]
[1767008732799,0.0114187,87679.0,87663.0,0.06875185]
[1767008732998,0.02421816,87678.0,87663.0,0.06875185]
[1767008733301,0.02421816,87677.0,87663.0,0.06875185]
[1767008733499,0.0114187,87679.0,87663.0,0.06875185]
[1767008733700,0.02421889,87678.0,87663.0,0.06875185]
[1767008734000,0.02421889,87677.0,87663.0,0.06875185]
[1767008734198,0.0114187,87679.0,87663.0,0.06875185]
[1767008734402,0.02421394,87678.0,87663.0,0.06875185]
[1767008734599,0.02421394,87677.0,87663.0,0.06875185]
[1767008734896,0.0114187,87679.0,87663.0,0.05733115]
[1767008735101,0.02421316,87678.0,87663.0,0.05733115]
[1767008735306,0.02421316,87677.0,87663.0,0.05733115]
[1767008735496,0.02421316,87676.0,87663.0,0.06875185]
[1767008735697,0.0114187,87679.0,87663.0,0.06875185]
[1767008735894,0.02421455,87678.0,87663.0,0.06875185]
[1767008736093,0.02421455,87677.0,87663.0,0.06875185]
[1767008736392,0.02421455,87676.0,87663.0,0.06875185]
[1767008736599,0.0114187,87679.0,87663.0,0.06875185]
[1767008736799,0.02421612,87678.0,87663.0,0.06875185]
[1767008737001,0.02421612,87677.0,87663.0,0.06875185]
[1767008737304,0.02421612,87676.0,87663.0,0.06875185]
[1767008737504,0.0114187,87679.0,87663.0,0.06875185]
[1767008737708,0.02421743,87678.0,87663.0,0.06875185]
[1767008737908,0.02421743,87677.0,87663.0,0.06875185]
[1767008738201,0.02421743,87676.0,87663.0,0.06875185]
[1767008738408,0.02421743,87675.0,87663.0,0.06875185]
[1767008738610,0.0114187,87679.0,87663.0,0.06875185]
[1767008738903,0.011419,87677.0,87663.0,0.05733115]
[1767008739204,0.02421949,87676.0,87663.0,0.05733115]
[1767008739406,0.0114196,87672.0,87663.0,0.05733115]
[1767008740500,0.0114193,87675.0,87663.0,0.05733115]
[1767008740710,0.02422145,87674.0,87663.0,0.05733115]
[1767008741006,0.02422145,87673.0,87663.0,0.05733115]
[1767008741207,0.02422599,87672.0,87663.0,0.05733115]
[1767008741403,0.0114193,87675.0,87663.0,0.05733115]
[1767008741598,0.02422604,87674.0,87663.0,0.05733115]
[1767008741797,0.02422604,87673.0,87663.0,0.05733115]
[1767008742000,0.02422604,87672.0,87663.0,0.05733115]
[1767008742204,0.0114193,87675.0,87663.0,0.05733115]
[1767008742410,0.02422974,87674.0,87663.0,0.05733115]
[1767008742598,0.02422974,87673.0,87663.0,0.05733115]
[1767008742799,0.02422974,87672.0,87663.0,0.05733115]
[1767008743104,0.0114193,87675.0,87663.0,0.05733115]
[1767008743301,0.02422558,87674.0,87663.0,0.05733115]
[1767008743501,0.02422558,87673.0,87663.0,0.05694684]
[1767008743701,0.02422558,87672.0,87663.0,0.05694684]
[1767008743903,0.0114193,87675.0,87663.0,0.05694684]
[1767008744199,0.28283285,87680.0,87663.0,0.05694684]
[1767008744806,0.0114191,87676.0,87663.0,0.05694684]
[1767008746599,0.0114198,87670.0,87663.0,0.05694684]
[1767008746799,0.0114195,87673.0,87663.0,0.05694684]
[1767008747307,0.28283285,87680.0,87663.0,0.05694684]
[1767008747510,0.0114194,87673.0,87663.0,0.05694684]
[1767008750513,0.0114191,87676.0,87663.0,0.05694684]
[1767008752814,0.28283285,87680.0,87663.0,0.05694684]
[1767008754206,0.0114193,87675.0,87663.0,0.05694684]
[1767008756213,0.02413672,87674.0,87663.0,0.05694684]
[1767008756514,0.02413672,87673.0,87663.0,0.05694684]
[1767008756708,0.0114193,87675.0,87663.0,0.05694684]
[1767008757006,0.0241358,87674.0,87663.0,0.05694684]
[1767008757310,0.00189143,87673.0,87663.0,0.05694684]
[1767008757612,0.0114193,87675.0,87663.0,0.05694684]
[1767008757812,0.0114195,87673.0,87663.0,0.05694684]
[1767008760214,0.0114191,87676.0,87663.0,0.05694684]
[1767008760713,0.1542,87680.0,87663.0,0.05694684]
[1767008761015,0.0114189,87677.0,87663.0,0.05694684]
[1767008761317,0.33999285,87680.0,87663.0,0.05694684]
[1767008761714,0.0114193,87675.0,87663.0,0.05694684]
[1767008764116,0.0114197,87671.0,87663.0,0.00017115]
[1767008765322,0.0114197,87672.0,87663.0,0.00017115]
[1767008765515,0.0114193,87675.0,87663.0,0.00017115]
[1767008768221,0.0114195,87673.0,87663.0,0.00017115]
[1767008770520,0.0114191,87676.0,87663.0,0.00017115]
[1767008770715,0.02393516,87675.0,87663.0,0.00017115]
[1767008770924,0.02393516,87674.0,87663.0,0.00017115]
[1767008771118,0.0114191,87676.0,87663.0,0.00017115]
[1767008771318,0.02392929,87675.0,87663.0,0.00017115]
[1767008771519,0.02392929,87674.0,87663.0,0.00017115]
[1767008771714,0.0114191,87676.0,87663.0,0.00017115]
[1767008771914,0.02392934,87675.0,87663.0,0.00017115]
[1767008772210,0.02392934,87674.0,87663.0,0.00017115]
[1767008772414,0.02392934,87673.0,87663.0,0.00017115]
[1767008772617,0.0114191,87676.0,87663.0,0.00017115]
[1767008772818,0.02393366,87675.0,87664.0,0.04563]
[1767008773118,0.02393366,87674.0,87664.0,0.04563]
[1767008773319,0.02393366,87673.0,87664.0,0.04563]
[1767008773613,0.0114191,87676.0,87664.0,0.04563]
[1767008773810,0.03535359,87675.0,87664.0,0.04563]
[1767008774015,0.02393429,87674.0,87664.0,0.04563]
[1767008774223,0.02393429,87673.0,87664.0,0.04563]
[1767008774417,0.0114191,87676.0,87665.0,0.01784929]
[1767008774620,0.0114191,87676.0,87666.0,0.01784929]
[1767008774820,0.0114191,87676.0,87667.0,0.01784929]
[1767008775128,0.0114191,87676.0,87664.0,0.04563]
[1767008775129,0.0114191,87676.0,87668.0,0.01784929]
[1767008775428,0.0114191,87676.0,87664.0,0.04563]
[1767008778224,0.33999285,87680.0,87664.0,0.04563]
[1767008778825,0.011419,87677.0,87664.0,0.04563]
[1767008780625,0.0114197,87672.0,87664.0,0.04563]
[1767008780828,0.0114193,87675.0,87664.0,0.04563]
[1767008781030,0.33999285,87680.0,87664.0,0.04563]
[1767008782328,0.0114196,87672.0,87664.0,0.04563]
[1767008782532,0.0114199,87670.0,87664.0,0.04563]
[1767008786033,0.0114195,87673.0,87664.0,0.04563]
[1767008786930,0.1542,87680.0,87664.0,0.04563]
[1767008787126,0.0238993,87679.0,87664.0,0.04563]
[1767008787326,0.0238993,87678.0,87664.0,0.04563]
[1767008787527,0.0238993,87677.0,87664.0,0.04563]
[1767008787831,0.0114196,87672.0,87664.0,0.04563]
[1767008788237,0.0114194,87674.0,87664.0,0.04563]
[1767008788526,0.1542,87680.0,87664.0,0.04563]
[1767008788732,0.0114193,87675.0,87664.0,0.04563]
[1767008789135,0.1542,87680.0,87664.0,0.04563]
[1767008789324,0.02387933,87679.0,87664.0,0.04563]
[1767008789531,0.02387933,87678.0,87664.0,0.04563]
[1767008789729,0.02387933,87677.0,87664.0,0.04563]
[1767008789929,0.1542,87680.0,87664.0,0.04563]
[1767008790125,0.02387906,87679.0,87664.0,0.04563]
[1767008790326,0.02387906,87678.0,87664.0,0.04563]
[1767008790637,0.02387906,87677.0,87664.0,0.04563]
[1767008790933,0.1542,87680.0,87664.0,0.04563]
[1767008791137,0.02388312,87679.0,87664.0,0.04563]
[1767008791435,0.02388312,87678.0,87664.0,0.04563]
[1767008791627,0.02388312,87677.0,87664.0,0.04563]
[1767008791827,0.0114192,87675.0,87664.0,0.04563]
[1767008792139,0.1542,87680.0,87664.0,0.04563]
[1767008792341,0.02388722,87679.0,87664.0,0.04563]
[1767008792635,0.02388722,87678.0,87664.0,0.04563]
[1767008792835,0.02388722,87677.0,87664.0,0.04563]
[1767008793037,0.1542,87680.0,87664.0,0.04563]
[1767008793238,0.011419,87677.0,87664.0,0.04563]
[1767008794745,0.011419,87677.0,87663.0,0.00017115]
[1767008795142,0.1542,87680.0,87663.0,0.00017115]
[1767008795443,0.02388638,87679.0,87663.0,0.00017115]
[1767008795640,0.02388638,87678.0,87663.0,0.00017115]
[1767008795943,0.02388638,87677.0,87663.0,0.00017115]
[1767008796132,0.1542,87680.0,87663.0,0.00017115]
[1767008796333,0.011419,87677.0,87663.0,0.00017115]
[1767008796738,0.1542,87680.0,87664.0,0.0114205]
[1767008796943,0.02388602,87679.0,87663.0,0.00017115]
[1767008797138,0.02388602,87678.0,87665.0,0.04426]
[1767008797345,0.02388602,87677.0,87665.0,0.0556804]
[1767008797546,0.1656186,87680.0,87665.0,0.0556804]
[1767008797846,0.02388521,87679.0,87665.0,0.0556804]
[1767008798043,0.02388521,87678.0,87665.0,0.0556804]
[1767008798244,0.02388521,87677.0,87665.0,0.04426]
[1767008798444,0.02388521,87676.0,87665.0,0.04426]
[1767008798740,0.02388521,87675.0,87665.0,0.04426]
[1767008798947,0.0114191,87676.0,87665.0,0.04426]